bitfinex-derivatives/quotes_ETHF0:USTF0_20251013
["timestamp","ask_amount","ask_price","bid_price","bid_amount"]
[1760343349909,0.62796,4184.5,4183.9,3.2078]
[1760343349910,0.1981,4184.0,4183.9,3.2078]
[1760343350114,0.691,4184.0,4183.9,3.2078]
[1760343350323,0.691,4184.0,4183.9,3.21087341]
[1760343351314,0.1981,4184.5,4183.9,3.21087341]
[1760343351510,0.691,4184.5,4184.4,3.63766]
[1760343352811,0.691,4184.5,4184.4,3.2078]
[1760343354516,0.1981,4184.5,4184.4,3.2078]
[1760343354717,0.1921,4185.0,4184.9,0.42981]
[1760343354921,0.685,4185.0,4184.9,3.63761]
[1760343357418,0.685,4185.0,4184.9,3.2078]
[1760343358320,0.1921,4185.0,4184.9,3.2078]
[1760343358922,0.685,4185.0,4184.9,3.2078]
[1760343359324,0.1921,4185.0,4184.9,3.2078]
[1760343359520,0.69683202,4185.5,4185.4,0.42976]
[1760343359730,0.69683202,4185.5,4185.4,3.63756]
[1760343359731,0.20393202,4185.5,4185.4,3.63756]
[1760343360231,0.69683202,4185.5,4185.4,3.63756]
[1760343360528,0.20393202,4185.5,4185.4,3.63756]
[1760343360726,0.00193202,4185.5,4185.4,3.63756]
[1760343360927,0.1981,4186.0,4185.8,0.42972]
[1760343361127,0.1981,4186.0,4185.9,3.2078]
[1760343361929,0.20037108,4186.0,4185.9,3.2078]
[1760343362125,0.1981,4186.5,4186.3,0.42967]
[1760343362326,0.4929,4186.8,4186.4,3.2078]
[1760343362741,0.4929,4186.8,4186.7,0.42963]
[1760343362938,0.691,4186.5,4186.4,3.63746]
[1760343363136,0.19977947,4186.5,4186.4,3.63746]
[1760343363440,0.00167947,4186.5,4186.4,3.63746]
[1760343364232,0.1981,4187.5,4186.8,0.42962]
[1760343364433,0.691,4187.0,4186.9,3.2078]
[1760343364628,0.1981,4187.5,4187.0,1.074]
[1760343364836,0.691,4187.5,4187.4,0.42956]
[1760343365237,0.69271715,4187.5,4187.4,0.43223235]
[1760343366542,0.69271715,4187.5,4187.4,0.00267235]
[1760343367639,0.4929,4186.9,4186.4,3.2078]
[1760343367840,0.1981,4187.0,4186.5,0.42964]
[1760343367841,0.4929,4186.7,4186.5,0.42964]
[1760343368036,0.1981,4187.0,4186.8,0.42961]
[1760343368243,0.4929,4186.9,4186.8,3.63741]
[1760343368645,0.4929,4186.9,4186.8,3.2105482]
[1760343377455,0.1981,4187.0,4186.9,0.42961]
[1760343378944,0.4929,4187.3,4187.2,0.42958]
[1760343379259,0.69271715,4187.5,4187.4,0.42956]
[1760343379552,0.69271715,4187.5,4187.4,3.63736]
[1760343380246,0.19981715,4187.5,4187.4,3.63736]
[1760343380443,0.1981,4188.0,4187.8,0.42951]
[1760343380647,0.1981,4188.0,4187.9,3.2078]
[1760343381044,0.656,4188.0,4187.9,3.2078]
[1760343381450,0.65853296,4188.0,4187.9,3.2078]
[1760343389263,1.30903296,4188.0,4187.9,3.2078]
[1760343390259,0.65853296,4188.0,4187.9,3.2078]
[1760343391563,0.20063296,4188.0,4187.9,3.2078]
[1760343394862,0.00253296,4188.0,4187.9,3.2078]
[1760343395165,0.1981,4189.0,4187.9,3.2078]
[1760343395166,0.1981,4189.0,4188.9,0.4294]
[1760343395468,0.656,4189.0,4188.9,3.6372]
[1760343395668,0.1917,4190.0,4189.9,0.4293]
[1760343395858,0.1917,4190.0,4189.9,3.6371]
[1760343395859,0.6496,4190.0,4189.9,3.6371]
[1760343396365,0.65167711,4190.0,4189.9,3.63986868]
[1760343396761,0.6496,4190.5,4190.4,0.42925]
[1760343396966,0.6496,4190.5,4190.4,3.63705]
[1760343397760,0.65257399,4190.5,4190.4,3.63705]
[1760343398163,0.19467399,4190.5,4190.4,3.63705]
[1760343398358,0.00297399,4190.5,4190.4,3.63705]
[1760343398763,0.65257399,4190.5,4190.4,3.63705]
[1760343400271,0.19467399,4190.5,4190.4,3.63705]
[1760343400770,0.65257399,4190.5,4190.4,3.63705]
[1760343403172,0.19467399,4190.5,4190.4,3.63705]
[1760343404463,0.00297399,4190.5,4190.4,3.63705]
[1760343404668,0.4579,4191.4,4191.3,0.42916]
[1760343404967,0.4579,4191.4,4191.3,3.63696]
[1760343405566,0.46025667,4191.4,4191.3,3.63696]
[1760343406167,0.1917,4192.5,4191.3,3.63696]
[1760343406168,0.1917,4192.5,4191.3,3.2078]
[1760343406368,0.196,4191.5,4191.3,0.42916]
[1760343406575,0.196,4191.5,4191.4,3.2078]
[1760343406767,0.4994,4191.9,4191.4,3.2078]
[1760343406963,0.4994,4191.9,4191.8,0.4291]
[1760343407164,0.50124881,4191.9,4191.8,0.4291]
[1760343408070,0.00184881,4191.9,4191.8,0.4291]
[1760343408474,0.50124881,4191.9,4191.8,0.4291]
[1760343409269,0.00184881,4191.9,4191.8,0.4291]
[1760343409970,0.48484881,4191.9,4191.8,0.4291]
[1760343410366,0.6712,4191.5,4191.4,3.63695]
[1760343411564,0.6712,4191.5,4191.4,3.2078]
[1760343412173,0.00184881,4191.9,4191.8,0.4291]
[1760343412374,0.48484881,4191.9,4191.8,0.4291]
[1760343412570,0.483,4193.2,4191.5,2.14569]
[1760343412774,0.22,4193.3,4193.2,0.42896]
[1760343412972,0.1882,4194.0,4193.9,0.42889]
[1760343413176,0.1882,4194.5,4193.9,3.2078]
[1760343413377,0.1882,4194.5,4194.4,3.63664]
[1760343413580,0.19057734,4194.5,4194.4,3.63859674]
[1760343414077,0.00237734,4194.5,4194.4,3.63859674]
[1760343414275,0.67357734,4194.5,4194.4,3.63859674]
[1760343414578,0.19057734,4194.5,4194.4,3.63859674]
[1760343414785,0.67357734,4194.5,4194.4,3.20975674]
[1760343415576,0.19057734,4194.5,4194.4,3.20975674]
[1760343416581,0.00237734,4194.5,4194.4,3.20975674]
[1760343417177,0.1882,4195.0,4194.4,3.20975674]
[1760343417383,0.6712,4195.0,4194.9,3.2078]
[1760343418179,0.67419221,4195.0,4194.9,3.2078]
[1760343418691,1.10297221,4195.0,4194.9,3.2078]
[1760343420086,0.67419221,4195.0,4194.9,3.2078]
[1760343423488,0.19119221,4195.0,4194.9,3.2078]
[1760343423984,0.67419221,4195.0,4194.9,3.2078]
[1760343424987,0.19119221,4195.0,4194.9,3.2078]
[1760343425287,0.483,4195.3,4194.9,3.2078]
[1760343425483,0.1882,4195.5,4194.9,3.2078]
[1760343425685,0.6712,4195.5,4195.4,3.2078]
[1760343426296,0.67363244,4195.5,4195.4,3.2078]
[1760343428285,0.1882,4195.0,4194.9,3.2078]
[1760343428486,0.6712,4195.0,4194.9,2.7222587]
[1760343429584,0.6712,4195.0,4194.4,3.20975674]
[1760343429585,0.1882,4194.5,4194.4,3.20975674]
[1760343429785,1.10003,4194.5,4194.4,3.20975674]
[1760343430291,1.10003,4194.5,4194.4,0.00195674]
[1760343430887,1.10013,4193.5,4193.4,3.2078]
[1760343431594,1.10018,4193.0,4192.9,3.2078]
[1760343431988,1.10018,4193.0,4192.9,3.21000445]
[1760343432696,1.10018,4193.0,4192.9,0.00220445]
[1760343437700,1.10018,4193.0,4190.6,1.07306]
[1760343437701,1.10028,4192.0,4191.4,3.2078]
[1760343437893,0.6712,4191.0,4190.9,3.2078]
[1760343438197,0.1882,4191.5,4191.1,0.42917]
[1760343438398,0.6712,4191.5,4191.4,3.2078]
[1760343438795,0.67366541,4191.5,4191.4,3.20980995]
[1760343439791,3.82482629,4191.5,4191.4,0.00200995]
[1760343440887,0.67366541,4191.5,4191.4,0.00200995]
[1760343444199,0.1959,4191.0,4190.8,3.2078]
[1760343444399,0.4789,4190.9,4190.8,3.2078]
[1760343445001,3.57138774,4190.9,4190.8,3.2078]
[1760343445298,3.57138774,4190.9,4190.1,3.2078]
[1760343445299,0.90817,4190.2,4190.1,3.2078]
[1760343445495,0.90817,4190.2,4190.1,3.20954382]
[1760343447002,0.4789,4190.2,4190.1,3.20954382]
[1760343447598,0.1959,4190.5,4190.4,0.42925]
[1760343447897,0.1959,4191.0,4190.1,3.20954382]
[1760343448095,0.6748,4191.0,4190.9,3.637]
[1760343448806,0.6748,4191.0,4190.9,3.2078]
[1760343451994,0.4789,4192.2,4191.4,0.42915]
[1760343452196,0.4789,4192.2,4192.1,3.2078]
[1760343452994,0.4817786,4192.2,4192.1,3.2078]
[1760343454102,0.0028786,4192.2,4192.1,3.2078]
[1760343454299,0.4817786,4192.2,4192.1,3.2078]
[1760343457301,0.4817786,4192.2,4190.9,0.42919]
[1760343457302,0.6748,4191.0,4190.9,0.42919]
[1760343457502,0.6748,4191.0,4190.3,3.2078]
[1760343457704,0.6748,4191.0,4190.1,0.00174382]
[1760343457705,0.4789,4190.9,4190.8,3.637]
[1760343459796,0.4789,4190.9,4190.8,3.2078]
[1760343459998,0.1959,4190.5,4190.2,3.2078]
[1760343460209,0.4789,4190.4,4190.3,0.42926]
[1760343460896,0.42925,4190.4,4190.2,3.2078]
[1760343461097,0.90817,4190.3,4190.1,0.00174382]
[1760343461499,3.11670541,4190.2,4190.1,0.00174382]
[1760343461695,3.59560541,4190.2,4190.1,0.00174382]
[1760343463103,0.4789,4189.4,4189.2,3.2078]
[1760343463297,0.1959,4189.5,4189.2,3.2078]
[1760343463607,0.4789,4189.4,4189.2,3.2078]
[1760343464103,0.1959,4189.5,4189.2,3.20972717]
[1760343464510,0.4789,4189.4,4189.3,0.42935]
[1760343465307,0.4546,4189.4,4189.2,3.20972717]
[1760343465506,0.1959,4189.5,4189.2,3.63908717]
[1760343466009,0.4546,4189.4,4189.3,0.42935]
[1760343474111,0.1959,4189.5,4189.3,0.42935]
[1760343476214,0.4505,4189.4,4189.3,0.42935]
[1760343479914,0.4505,4189.4,4189.2,3.63908717]
[1760343480213,0.1959,4189.5,4189.2,3.63908717]
[1760343480412,0.87986,4189.3,4189.2,3.20972717]
[1760343480610,0.4505,4189.3,4189.2,0.00192717]
[1760343481313,3.55859699,4189.3,4188.2,3.2078]
[1760343481507,0.4505,4188.4,4188.2,3.2078]
[1760343481710,0.4505,4188.4,4188.2,3.63727]
[1760343481911,0.4505,4188.4,4188.3,0.42946]
[1760343482112,0.4505,4188.3,4188.2,3.2078]
[1760343482416,0.45279372,4188.3,4188.2,3.2101057]
[1760343485915,1.09469372,4188.3,4188.2,3.2101057]
[1760343486815,0.76549372,4188.3,4188.2,3.2101057]
[1760343487121,0.45279372,4188.3,4188.2,3.2101057]
[1760343487619,1.09469372,4188.3,4188.2,3.2101057]
[1760343489821,1.09469372,4188.3,4188.2,0.0023057]
[1760343490118,0.4505,4187.4,4187.3,0.42956]
[1760343490918,0.4505,4187.4,4187.3,0.4317089]
[1760343492319,0.4505,4187.4,4187.3,0.0021489]
[1760343493225,3.57678551,4187.4,4187.3,0.0021489]
[1760343493427,0.4505,4187.4,4187.3,0.0021489]
[1760343495926,1.0924,4187.4,4187.3,0.0021489]
[1760343496328,1.0924,4187.4,4186.7,3.2078]
[1760343496329,0.1877,4187.0,4186.7,3.2078]
[1760343496629,1.0924,4186.3,4186.2,3.2078]
[1760343496823,0.4505,4186.3,4186.2,3.63748]
[1760343497218,0.4505,4186.3,4186.1,0.42968]
[1760343497525,0.4505,4186.3,4185.7,3.2078]
[1760343497526,0.4505,4185.9,4185.8,0.42972]
[1760343497728,0.4505,4185.9,4185.8,0.43228986]
[1760343504034,0.762,4185.9,4185.8,0.43228986]
[1760343504437,0.4505,4185.9,4185.8,0.43228986]
[1760343505634,0.762,4185.9,4185.8,0.43228986]
[1760343506230,0.4505,4185.9,4185.8,0.43228986]
[1760343511641,0.1877,4186.5,4186.4,0.42966]
[1760343511843,0.1877,4187.0,4186.9,0.42961]
[1760343512055,0.4992,4187.0,4186.9,0.42961]
[1760343513038,0.1877,4187.0,4186.9,0.42961]
[1760343513238,3.2078,4187.6,4187.4,0.42956]
[1760343513437,0.822,4187.5,4187.4,0.42956]
[1760343513840,1.2752,4187.5,4187.4,0.42956]
[1760343517836,0.6409,4187.5,4187.4,3.63736]
[1760343518036,0.4532,4187.9,4187.5,1.07387]
[1760343518240,0.1954,4188.0,4187.5,1.07387]
[1760343518539,0.4532,4187.9,4187.8,0.42951]
[1760343518741,0.00229372,4188.3,4187.8,0.42951]
[1760343518742,0.00229372,4188.3,4188.2,0.42947]
[1760343518940,0.45549372,4188.3,4188.2,0.42947]
[1760343519139,1.08979372,4188.3,4187.5,1.27887086]
[1760343519344,1.08979372,4188.3,4187.4,3.2078]
[1760343519345,1.2829,4187.5,4187.4,3.63736]
[1760343521048,0.9601,4187.5,4187.4,3.63736]
[1760343521243,0.6486,4187.5,4187.4,3.63736]
[1760343521442,0.8297,4188.0,4187.9,0.4295]
[1760343521842,1.2829,4188.0,4187.9,0.4295]
[1760343522351,1.2829,4188.0,4187.7,0.42952]
[1760343522548,1.0875,4187.6,4187.5,0.42954]
[1760343522849,0.4532,4187.6,4187.5,0.42954]
[1760343524752,0.1954,4188.0,4187.9,0.4295]
[1760343524947,0.1954,4188.0,4187.9,3.6373]
[1760343525148,0.6803,4188.0,4187.9,3.6373]
[1760343526452,1.0046,4188.0,4187.9,3.6373]
[1760343526646,1.3152,4188.0,4187.9,3.2078]
[1760343527648,1.0046,4188.0,4187.9,3.2078]
[1760343529254,0.1954,4188.0,4187.9,3.2078]
[1760343529550,0.00229372,4188.3,4188.2,0.42947]
[1760343529750,0.48149372,4188.3,4188.2,0.42947]
[1760343529953,0.79079372,4188.3,4188.2,0.42947]
[1760343530149,1.09009372,4188.3,4188.2,0.42947]
[1760343531967,0.6551,4187.5,4187.4,4.48667086]
[1760343532163,0.9644,4187.5,4187.4,3.63736]
[1760343532358,0.6551,4187.5,4187.4,3.63736]
[1760343532563,0.7885,4187.9,4187.7,0.42952]
[1760343532864,1.0878,4187.8,4187.5,0.42954]
[1760343533966,0.7885,4188.2,4187.4,3.2078]
[1760343534268,0.3093,4187.8,4187.4,3.2078]
[1760343534468,0.7885,4187.9,4187.8,0.42951]
[1760343534663,0.4792,4187.9,4187.8,0.42951]
[1760343534965,0.7885,4187.9,4187.8,0.42951]
[1760343535167,0.4792,4187.9,4187.8,0.42951]
[1760343536859,1.0878,4187.9,4187.8,0.42951]
[1760343537165,1.2637,4187.5,4187.4,3.63735]
[1760343538356,1.2637,4187.5,4187.4,3.2078]
[1760343538563,0.7845,4187.0,4186.9,4.48667086]
[1760343538771,1.2637,4187.0,4186.9,3.2078]
[1760343542161,0.7845,4187.0,4186.8,1.27887086]
[1760343542366,0.7845,4186.5,4186.4,4.91633086]
[1760343542569,1.2637,4186.5,4186.4,4.91633086]
[1760343544267,1.2637,4186.5,4186.4,3.63746]
[1760343544468,1.2637,4186.5,4186.4,3.2078]
[1760343544665,1.0878,4186.2,4186.0,1.27887086]
[1760343544871,1.0878,4186.1,4186.0,1.27887086]
[1760343545070,0.6551,4186.0,4185.9,4.48667086]
[1760343545271,1.2637,4186.0,4185.9,3.2078]
[1760343545570,1.2637,4186.0,4185.8,0.00256986]
[1760343545772,4.83332692,4186.0,4185.8,0.00256986]
[1760343546868,0.1759,4185.0,4184.9,3.2078]
[1760343547074,0.6551,4184.5,4184.4,3.2078]
[1760343547373,0.6551,4184.0,4183.9,3.63771]
[1760343548165,0.65747294,4184.0,4183.9,3.64055361]
[1760343550071,0.00237294,4184.0,4183.9,3.64055361]
[1760343550272,0.00237294,4184.0,4183.9,3.92205361]
[1760343552075,0.4792,4185.4,4184.4,0.2815]
[1760343552279,0.4792,4185.4,4184.0,0.1407]
[1760343552280,0.4792,4185.4,4185.3,0.42977]
[1760343552480,0.4792,4184.9,4184.8,0.42982]
[1760343552676,0.4792,4184.9,4184.7,3.2078]
[1760343552882,0.1759,4185.0,4184.7,3.63763]
[1760343553082,0.178152,4185.0,4184.7,3.63763]
[1760343553377,0.4792,4184.9,4184.7,0.42983]
[1760343555579,0.90901,4184.9,4184.6,0.42983]
[1760343555780,0.90901,4184.9,4184.7,0.42983]
[1760343556084,0.6551,4184.5,4183.6,3.4893]
[1760343556287,0.6551,4184.0,4183.9,0.43275361]
[1760343557276,0.4792,4183.4,4183.2,0.23904859]
[1760343557484,0.90917,4183.4,4183.2,0.23904859]
[1760343557684,3.58332543,4183.3,4183.2,0.23904859]
[1760343558787,3.58332543,4183.3,4183.2,0.24078294]
[1760343558984,0.4792,4183.3,4183.2,0.24078294]
[1760343559179,0.85476168,4185.5,4183.2,0.24078294]
[1760343559180,3.2078,4185.2,4184.9,0.42981]
[1760343559382,0.657352,4185.0,4184.9,0.42981]
[1760343559580,0.002252,4185.0,4184.9,0.69931]
[1760343560375,0.002252,4185.0,4184.9,0.42981]
[1760343560574,0.1759,4186.5,4184.7,13.95361]
[1760343560575,3.2078,4186.4,4184.7,13.95361]
[1760343560782,0.1759,4186.5,4185.9,3.2078]
[1760343561078,0.1759,4186.5,4186.3,0.42966]
[1760343561274,0.4686,4186.4,4186.3,0.42966]
[1760343561779,0.47165051,4186.4,4186.3,0.43181484]
[1760343562081,0.47165051,4186.4,4186.3,0.00215484]
[1760343562283,3.67945051,4186.4,4186.3,0.00215484]
[1760343563183,0.47165051,4186.4,4186.3,0.00215484]
[1760343564097,0.00305051,4186.4,4186.3,0.27165484]
[1760343564393,5.1e-07,4186.4,4186.3,0.00215484]
[1760343565281,5.1e-07,4186.4,4186.3,0.27165484]
[1760343566594,0.4686,4187.3,4187.2,0.42958]
[1760343566893,3.2078,4187.4,4187.2,0.69908]
[1760343567086,3.2078,4187.9,4187.2,3.4773]
[1760343567283,0.4686,4187.8,4187.2,3.4773]
[1760343567489,3.2078,4187.9,4187.2,3.4773]
[1760343567490,3.52736324,4187.9,4187.2,3.4773]
[1760343567686,0.00195581,4187.9,4187.7,3.90682]
[1760343568391,0.4686,4187.8,4187.7,3.63732]
[1760343568792,0.4686,4187.8,4187.2,0.2695]
[1760343568793,0.189,4187.5,4187.1,3.2078]
[1760343568986,0.4686,4187.4,4187.1,3.2078]
[1760343569189,0.4686,4187.4,4187.2,0.42957]
[1760343569390,0.189,4187.5,4187.2,0.42957]
[1760343569992,0.6576,4187.5,4187.4,0.42956]
[1760343572195,0.00195581,4187.9,4187.8,0.42951]
[1760343572489,3.2078,4188.5,4188.4,0.69895]
[1760343572693,3.2078,4189.1,4189.0,0.42939]
[1760343572991,3.2078,4189.1,4188.4,3.4773]
[1760343572992,0.6576,4189.0,4187.9,3.2078]
[1760343573186,0.4686,4188.9,4188.7,0.42941]
[1760343573392,0.4686,4188.8,4188.7,0.42941]
[1760343575495,0.00280144,4188.9,4188.7,0.69891]
[1760343575789,0.00280144,4188.9,4188.8,0.2695]
[1760343582999,0.47140144,4188.9,4188.7,0.42941]
[1760343583202,0.00280144,4188.9,4188.8,0.2695]
[1760343583792,0.4686,4189.9,4188.9,1.07351]
[1760343583992,3.6764,4190.1,4189.8,0.69601]
[1760343584500,3.2078,4190.1,4189.8,0.42931]
[1760343584700,0.4686,4190.0,4189.8,0.42931]
[1760343585008,0.4444,4189.9,4189.8,0.43099356]
[1760343585302,0.00293598,4190.0,4189.9,0.2575]
[1760343587109,0.4444,4189.9,4189.8,0.43098356]
[1760343587406,0.4444,4189.9,4189.8,0.00168356]
[1760343593307,0.00293598,4190.0,4189.8,0.43099356]
[1760343593502,0.00293598,4190.0,4189.9,0.2549]
[1760343594098,0.47393598,4190.0,4189.8,0.43099356]
[1760343594294,0.471,4189.9,4189.8,0.43099356]
[1760343594700,0.00293598,4190.0,4189.8,0.68589356]
[1760343594899,0.00293598,4190.0,4189.9,0.2549]
[1760343596010,0.47393598,4190.0,4189.8,0.43099356]
[1760343596312,0.471,4189.9,4189.8,0.00168356]
[1760343598907,0.471,4189.2,4189.1,3.2078]
[1760343600005,0.471,4189.2,4189.1,3.20972753]
[1760343600611,0.471,4189.2,4189.1,0.00192753]
[1760343600612,4.05080767,4189.2,4189.1,0.00192753]
[1760343600806,4.59511252,4189.2,4189.1,0.00192753]
[1760343601901,1.01530485,4189.2,4189.1,0.00192753]
[1760343602110,3.2078,4189.4,4189.2,0.68427]
[1760343602308,0.471,4189.4,4189.2,0.68427]
[1760343602514,0.1716,4189.5,4189.4,0.42935]
[1760343602705,0.6426,4189.5,4189.4,0.42935]
[1760343603611,0.17453598,4190.0,4189.9,0.4293]
[1760343603808,1.19059406,4190.0,4189.9,0.4293]
[1760343605014,0.471,4189.9,4189.7,0.42931]
[1760343605313,1.01605808,4189.8,4189.7,0.42932]
[1760343606313,1.01605808,4189.8,4189.1,0.00192753]
[1760343606517,0.1716,4189.5,4189.1,0.00192753]
[1760343606718,0.471,4189.4,4189.2,0.42937]
[1760343606907,0.6426,4189.5,4189.4,0.42935]
[1760343611314,0.6426,4189.5,4189.2,0.42936]
[1760343611518,0.1716,4189.5,4189.2,0.42936]
[1760343611723,0.471,4189.4,4189.3,0.42936]
[1760343612419,0.471,4189.2,4189.1,0.00192753]
[1760343612614,0.471,4189.2,4187.9,3.2078]
[1760343612615,0.6426,4188.0,4187.9,3.2078]
[1760343612822,0.6426,4188.0,4187.9,3.6373]
[1760343613123,0.4295,4187.9,4187.5,1.70841086]
[1760343613319,0.6426,4187.5,4187.4,3.2078]
[1760343613724,0.6426,4187.5,4187.4,3.20947498]
[1760343614222,0.1716,4188.5,4188.3,0.42946]
[1760343614524,0.471,4188.4,4188.3,0.42946]
[1760343614823,3.2078,4188.9,4188.7,0.42942]
[1760343614824,0.471,4188.8,4188.7,0.42942]
[1760343615020,0.17453598,4190.0,4189.2,0.42936]
[1760343615021,3.2078,4189.7,4189.2,0.42936]
[1760343615224,0.471,4189.9,4189.2,3.2078]
[1760343615425,1.01960822,4189.8,4189.6,0.42933]
[1760343615628,0.471,4189.9,4189.7,0.42931]
[1760343616130,0.17453598,4190.0,4189.8,0.42931]
[1760343616427,0.471,4189.9,4189.3,3.2078]
[1760343616629,0.64553598,4190.0,4189.9,0.4293]
[1760343617024,0.00293598,4190.0,4189.9,0.4293]
[1760343617232,0.00293598,4190.0,4189.9,0.6842]
[1760343617833,0.00293598,4190.0,4189.9,1.96400718]
[1760343619826,0.00293598,4190.0,4189.9,1.70910718]
[1760343620035,0.60003598,4190.0,4189.9,0.4293]
[1760343620628,0.00293598,4190.0,4189.9,0.6685]
[1760343621137,0.00293598,4190.0,4189.9,0.4293]
[1760343621338,0.43113598,4190.0,4189.9,0.4293]
[1760343622037,0.60003598,4190.0,4189.9,0.4293]
[1760343622741,0.00293598,4190.0,4189.9,0.6685]
[1760343623940,3.636,4190.8,4190.7,0.42922]
[1760343624441,3.636,4190.8,4190.2,0.2392]
[1760343624442,0.5998,4191.0,4190.9,0.4292]
[1760343625034,0.6023615,4191.0,4190.9,0.43128028]
[1760343625539,0.4307615,4191.0,4190.9,0.43128028]
[1760343626040,0.5996615,4191.0,4190.9,0.00208028]
[1760343626242,3.67796937,4191.0,4190.9,0.00208028]
[1760343626435,4.22597902,4191.0,4190.9,0.00208028]
[1760343626630,4.22597902,4191.0,4189.9,3.2078]
[1760343626631,0.42927,4190.2,4189.9,3.2078]
[1760343626838,0.4282,4189.4,4189.0,1.27980718]
[1760343627038,0.4282,4189.4,4189.3,0.42936]
[1760343627331,0.42938,4189.2,4188.9,3.2078]
[1760343627534,0.5971,4189.0,4188.9,3.2078]
[1760343627942,0.5971,4189.0,4188.9,3.21000512]
[1760343629455,1.02649,4189.0,4188.9,3.21000512]
[1760343629744,1.02649,4189.0,4188.9,0.00220512]
[1760343629942,4.06690647,4189.0,4188.9,0.00220512]
[1760343630249,4.06690647,4189.0,4188.2,0.42947]
[1760343630250,0.5971,4188.0,4187.9,3.2078]
[1760343630543,0.5971,4187.5,4187.4,3.2078]
[1760343630745,0.5971,4187.5,4186.4,0.2414]
[1760343630746,0.4282,4187.4,4187.1,1.70938718]
[1760343631047,0.4282,4187.4,4187.3,0.42957]
[1760343631345,0.4282,4188.4,4187.4,0.2414]
[1760343631544,0.5971,4188.5,4187.9,3.2078]
[1760343631847,0.5971,4188.5,4188.2,0.42947]
[1760343632043,0.1689,4188.5,4188.2,0.42947]
[1760343632243,0.4282,4188.4,4188.2,0.42947]
[1760343632744,3.2078,4189.1,4188.8,0.42941]
[1760343632940,0.4282,4188.9,4188.8,0.42941]
[1760343633334,0.00225736,4189.0,4188.8,0.42941]
[1760343633539,0.00225736,4189.0,4188.9,0.2414]
[1760343633741,0.5971,4190.0,4189.0,0.2414]
[1760343633941,0.5971,4190.0,4189.9,0.4293]
[1760343634141,3.2078,4190.3,4190.1,0.42927]
[1760343634541,0.4282,4190.7,4190.0,0.2414]
[1760343634847,0.43083476,4190.7,4190.6,0.42923]
[1760343635244,0.00263476,4190.7,4190.4,0.42925]
[1760343635438,0.4282,4190.6,4190.4,0.42925]
[1760343635945,0.4282,4190.4,4190.1,0.42927]
[1760343636138,0.4282,4190.4,4190.0,0.0027625]
[1760343636343,0.5971,4190.5,4190.4,0.42925]
[1760343637149,0.1689,4190.5,4190.2,0.42927]
[1760343637452,0.4282,4190.4,4190.2,0.42927]
[1760343637644,0.1689,4190.5,4190.2,0.42927]
[1760343637845,0.4282,4190.4,4190.2,0.42927]
[1760343638039,0.00263476,4190.7,4190.0,0.0027625]
[1760343638247,0.43083476,4190.7,4190.6,0.42923]
[1760343638548,0.00263476,4190.7,4190.6,0.42923]
[1760343639352,0.00263476,4190.7,4190.6,0.67063]
[1760343640053,0.43083476,4190.7,4190.6,0.42923]
[1760343642354,0.1689,4190.5,4190.0,0.0027625]
[1760343642649,0.4282,4190.4,4190.3,0.42925]
[1760343642846,0.00263476,4190.7,4190.6,0.42923]
[1760343643050,0.43083476,4190.7,4190.6,0.42923]
[1760343644444,0.1689,4190.5,4190.3,0.42925]
[1760343644644,0.4282,4190.4,4190.3,0.42925]
[1760343644845,6.70456797,4190.4,4190.0,0.0027625]
[1760343645047,0.4525,4190.1,4190.0,0.0027625]
[1760343647257,0.4525,4190.1,4189.2,0.42936]
[1760343647258,0.59874,4189.5,4189.2,0.42936]
[1760343647454,3.6603,4189.9,4189.2,0.2286]
[1760343647654,3.6603,4189.9,4189.6,0.42932]
[1760343647850,3.6371,4189.9,4189.6,0.42932]
[1760343648051,3.2078,4189.9,4189.7,0.42931]
[1760343648250,3.2078,4189.9,4189.6,0.43115554]
[1760343648450,0.4525,4189.8,4189.6,0.00182554]
[1760343649350,3.2078,4189.9,4189.6,0.00182554]
[1760343649659,0.88182,4189.7,4189.6,0.00182554]
[1760343649960,3.93425768,4189.7,4189.6,0.00182554]
[1760343654161,0.4525,4189.7,4189.6,0.00182554]
[1760343654365,3.2078,4189.9,4189.7,0.42932]
[1760343654562,0.429,4189.8,4189.7,0.42932]
[1760343655752,0.42927,4190.2,4190.0,0.42928]
[1760343655950,0.429,4190.1,4190.0,0.42928]
[1760343657460,0.1822,4190.0,4189.8,0.4293]
[1760343657658,0.429,4189.9,4189.8,0.4293]
[1760343662162,0.429,4189.8,4189.6,0.43114554]
[1760343662363,0.1822,4190.0,4189.9,0.4293]
[1760343662964,0.6112,4190.0,4189.9,0.4293]
[1760343664063,3.6368,4190.4,4190.3,0.42926]
[1760343664466,3.2078,4190.4,4190.1,0.42927]
[1760343664664,0.429,4190.3,4190.1,0.42927]
[1760343664865,0.429,4190.2,4190.0,0.42929]
[1760343665066,0.6115,4190.0,4189.8,0.4293]
[1760343665260,0.429,4189.9,4189.8,0.4293]
[1760343666162,0.4293,4189.9,4189.6,0.00182554]
[1760343666468,0.85832,4189.7,4189.6,0.00182554]
[1760343667668,1.04059,4189.0,4188.9,3.2078]
[1760343668570,0.42941,4188.9,4188.6,0.42943]
[1760343668870,0.429,4188.8,4188.6,0.43176441]
[1760343669767,0.1822,4188.5,4187.9,1.50590718]
[1760343669970,0.429,4188.4,4188.2,0.42947]
[1760343670269,0.429,4188.4,4188.3,0.42946]
[1760343670768,0.429,4188.4,4188.3,0.43210461]
[1760343671866,0.429,4188.4,4188.3,0.00264461]
[1760343672270,3.59647918,4188.4,4188.3,0.00264461]
[1760343673369,0.6112,4187.5,4187.4,4.91715718]
[1760343673669,0.429,4187.4,4187.2,1.70937718]
[1760343673880,0.42956,4187.4,4187.0,1.27980718]
[1760343674173,0.429,4187.4,4187.2,0.42957]
[1760343674368,0.002631,4187.4,4187.3,0.42956]
[1760343674568,0.431631,4187.4,4187.3,0.42956]
[1760343674968,0.002631,4187.4,4187.3,0.65566]